Cogmind - Beta 13 X1 @@@ ROGUE MODE // 2023.10.26 @ 14:00:30 Player: f3-rnm Result: Destroyed by 8R-AWN with 8R-AWN's Boregun Performance ------------- Evolutions (0) 0 Regions Visited (3) 600 Robots Destroyed (15) 75 Value Destroyed (335) 335 Prototype IDs (24) 480 Alien Tech Used (0) 0 Bonus (300) 300 TOTAL SCORE: 1790 Bonus ------- Aligned with FarCom 300 Cogmind --------- Core Integrity 0/250 Matter 150/300 Energy 86/250 System Corruption 6% Temperature Cool (36) Movement Core (350) Ox6 Location -10/Exiles Parts ------- > --- POWER (1) -------- Ion Engine > --- PROPULSION (2) --- (None) > --- UTILITY (2) ------ Hardened Medium Armor Plating Shield Generator > --- WEAPON (2) ------- Autogun Autogun > --- INVENTORY (5) ---- Latent Energy Streamer Autogun Autogun Katana Ripper Peak State ------------ > --- POWER ------------ Ion Engine > --- PROPULSION ------- Light Treads Light Treads > --- UTILITY ---------- Small Storage Unit Hardened Medium Armor Plating > --- WEAPON ----------- Latent Energy Streamer Autogun > --- INVENTORY -------- Light Ion Engine Experimental Heat Sink Shield Generator Autogun Autogun Autogun Katana Ripper [Rating: 21] Favorites ----------- Power Light Ion Engine Engine Light Ion Engine Propulsion Light Treads Treads Light Treads Utility Small Storage Unit Device Heat Sink Storage Small Storage Unit Protection Hardened Medium Armor Plating Weapon Autogun Energy Gun Medium Laser Energy Cannon Latent Energy Streamer Ballistic Gun Autogun Build | -11 -10 -10 -10 ------- Run | Jun Mat Min Exi Slots Evolved . | . . . . Power . | . . . . Propulsion . | . . . . Utility . | . . . . Weapon . | . . . . Parts Attached 19 | 6 4 3 6 Power 2 | 1 . . 1 Engine 2 | 1 . . 1 Core . | . . . . Reactor . | . . . . Propulsion 2 | 2 . . . Treads 2 | 2 . . . Leg . | . . . . Wheel . | . . . . Hover . | . . . . Flight . | . . . . Utility 6 | 1 3 1 1 Device 4 | . 3 . 1 Storage 1 | 1 . . . Processor . | . . . . Hackware . | . . . . Protection 1 | . . 1 . Artifact . | . . . . Weapon 9 | 2 1 2 4 Energy Gun 1 | 1 . . . Energy Cannon 2 | . . . 2 Ballistic Gun 6 | 1 1 2 2 Ballistic Cannon . | . . . . Launcher . | . . . . Special Weapon . | . . . . Impact Weapon . | . . . . Slashing Weapon . | . . . . Piercing Weapon . | . . . . Special Melee Weapon . | . . . . Unidentified Prototypes 1 | . 1 . . Parts Lost 2 | . . . 2 Power . | . . . . Propulsion 2 | . . . 2 Utility . | . . . . Weapon . | . . . . Highest Loss Streak 1 | . . . 1 To Critical Strikes . | . . . . Average Slot Usage (%) 98 | . 91 100 98 Engine 14 | . 14 14 14 Treads 27 | . 28 28 27 Device 4 | . 6 11 . Storage 13 | . 14 14 13 Protection 8 | . . 2 14 Energy Gun 5 | . 14 11 . Energy Cannon 2 | . . . 4 Ballistic Gun 20 | . 14 16 23 Naked Turns . | . . . . Heaviest Build 31 | 11 14 22 31 Greatest Support 40 | 40 40 40 40 Greatest Overweight (x) 1 | . . . 1 Average Overweight (x) . | . . . . Largest Inventory Capacity 8 | 8 8 8 8 Average Capacity 7 | 6 8 8 7 Most Carried 8 | 3 8 8 8 Average Carried 7 | 1 7 7 7 Final Capacity 8 | 8 8 8 5 Final Carried 8 | 3 8 8 5 Class Distribution -------------------- 100% | Mutant Dominant Class ---------------- Mutant | -10/Materials Mutant | -10/Mines Mutant | -10/Exiles Resources | -11 -10 -10 -10 ----------- Run | Jun Mat Min Exi Matter Collected 450 | 249 33 168 . Remotely . | . . . . Salvage Created 560 | 59 162 237 102 Parts 31 | 3 19 9 . Haulers Intercepted . | . . . . Recyclers Shooed . | . . . . Parts Field Recycled . | . . . . Retrieved Matter . | . . . . Parts Self-Destructed . | . . . . Prevented . | . . . . Kills | -11 -10 -10 -10 ------- Run | Jun Mat Min Exi Combat Hostiles Destroyed 19 | . 6 7 6 Guns 15 | . 6 7 2 AOE 4 | . . . 4 Classes Destroyed 5 | 1 3 . 1 Builder 1 | . 1 . . Recycler 1 | 1 . . . Swarmer 6 | . 3 3 . Grunt 7 | . 3 4 . Assembled 6 | . . . 6 Best Kill Streak 6 | 1 6 3 6 Combat Bots Only 6 | . 5 3 6 Max Kills in Single Turn 3 | 1 1 1 3 Gunslinging . | . . . . Exploded 3 | . . . 3 Melee . | . . . . Uniques/NPCs Destroyed . | . . . . Combat | -11 -10 -10 -10 -------- Run | Jun Mat Min Exi Damage Taken 908 | . 255 329 324 Core 255 | . 47 119 89 Absorbed by Shields 60 | . . . 60 Core Remaining (%) 100 | 100 . . . Volleys Fired 56 | 3 17 22 14 Largest 2 | 1 2 2 2 Hottest 73 | 50 73 73 60 Shots Fired 108 | 3 34 44 27 Gun 106 | 3 34 44 25 Cannon 2 | . . . 2 Launcher . | . . . . Special . | . . . . Kinetic 64 | . 17 22 25 Thermal 42 | 3 17 22 . Explosive . | . . . . Electromagnetic 2 | . . . 2 Robot Hit Streak 14 | 2 10 14 8 Robot Miss Streak 3 | 1 3 3 2 Penetration Max . | . . . . Secondary Targets 1 | . . 1 . Max Gunslinging Chain 1 | . . 1 . Shots Hit Robots 75 | 2 22 33 18 Core Hits 33 | 2 10 13 8 Critical Kills 1 | . . 1 . Critical Parts Destroyed . | . . . . Critical Strikes 4 | . . 4 . Burn 3 | . . 3 . Destroy 1 | . . 1 . Melee Attacks . | . . . . Impact . | . . . . Slashing . | . . . . Piercing . | . . . . Sneak Attacks . | . . . . Combat Hostiles . | . . . . Follow-up Attacks . | . . . . Damage Inflicted 1468 | 26 257 468 717 Guns 1021 | 26 257 468 270 Cannons 6 | . . . 6 Explosions 441 | . . . 441 Melee . | . . . . Ramming . | . . . . Kinetic 608 | . 93 245 270 Thermal 413 | 26 164 223 . Explosive . | . . . . Electromagnetic 447 | . . . 447 Impact . | . . . . Slashing . | . . . . Piercing . | . . . . Highest Corruption 6 | . . . 6 Average Corruption 5 | . . . 5 Corruption Purged . | . . . . Corruption Blocked . | . . . . Effects 2 | . . . 2 Energy Discharges 1 | . . . 1 Misfires 1 | . . . 1 Overload Shots . | . . . . Overflow Damage 20 | . . . 20 Projectiles . | . . . . Explosions 20 | . . . 20 Melee . | . . . . Knockbacks . | . . . . Impact . | . . . . Kinetic . | . . . . Secondary . | . . . . Self-Inflicted Damage . | . . . . Shots . | . . . . Rammed 1 | . . 1 . Targets Rammed 1 | . . 1 . Kicked . | . . . . Crushed . | . . . . Highest Temperature 216 | . 216 36 129 Average Temperature 51 | . 89 15 46 Received Heat Transfer 383 | . 99 144 140 Siege Activations . | . . . . Robots Corrupted . | . . . . Combat Hostiles . | . . . . Parts Fried . | . . . . Impact Corruptions . | . . . . Robots Melted . | . . . . Combat Hostiles . | . . . . Parts Melted 3 | . . 3 . Heat Transferred 1443 | 74 481 888 . Parts Sabotaged . | . . . . Parts Stolen . | . . . . Parts Stripped . | . . . . Power Chain Reactions . | . . . . Missiles Intercepted . | . . . . Latent Energy Used 379 | . . . 379 LE Corruption 6 | . . . 6 Alert | -11 -10 -10 -10 ------- Run | Jun Mat Min Exi Peak Influence 173 | 5 173 167 . Initial 67 | . 3 67 . Average 78 | 3 80 88 . Maximum Alert Level . | . . . . Low Security (%) 100 | 100 100 100 . Level 1 . | . . . . Level 2 . | . . . . Level 3 . | . . . . Level 4 . | . . . . Level 5 . | . . . . High Security . | . . . . Max Security . | . . . . Squads Dispatched 3 | . 2 1 . Investigation 2 | . 1 1 . Extermination . | . . . . Reinforcement 1 | . 1 . . Assault . | . . . . Garrison . | . . . . Intercept . | . . . . Searches Triggered . | . . . . Construction Impeded . | . . . . Haulers Reinforced . | . . . . Active Scanning Responses . | . . . . Cargo Convoy Interrupts . | . . . . Stealth | -11 -10 -10 -10 --------- Run | Jun Mat Min Exi Distress Signals 1 | . 1 . . Communications Jammed . | . . . . Distress Signals . | . . . . Times Spotted 24 | . 9 7 8 Peak Tracking Total 9 | . 5 3 9 Tactical Retreats . | . . . . Traps | -11 -10 -10 -10 ------- Run | Jun Mat Min Exi Traps Triggered . | . . . . Indirectly . | . . . . Trap Hack Attempts . | . . . . Triggered . | . . . . Disarmed . | . . . . Reprogrammed . | . . . . Reused . | . . . . Traps Extracted . | . . . . Installed . | . . . . Triggered . | . . . . Machines | -11 -10 -10 -10 ---------- Run | Jun Mat Min Exi Machines Disabled 4 | . . . 4 Max in Single Turn 1 | . . . 1 Machines Repaired . | . . . . Machines Sabotaged . | . . . . Overloaded Fab Kills . | . . . . Hacking | -11 -10 -10 -10 --------- Run | Jun Mat Min Exi Machines Accessed 2 | . . 1 1 Terminals . | . . . . Fabricators . | . . . . Repair Stations . | . . . . Recycling Units . | . . . . Scanalyzers . | . . . . Garrison Access . | . . . . Total Hacks 2 | . . 1 1 Successful 2 | . . 1 1 Failed . | . . . . Catastrophic . | . . . . Database Lockouts . | . . . . Manual 1 | . . . 1 Terminals . | . . . . Fabricators . | . . . . Repair Stations . | . . . . Recycling Units . | . . . . Scanalyzers . | . . . . Garrison Access . | . . . . Terminal Hacks 2 | . . 1 1 Open Door 1 | . . 1 . Derelict Proto ID Bank 1 | . . . 1 Fabricator Hacks . | . . . . Repair Station Hacks . | . . . . Recycling Unit Hacks . | . . . . Scanalyzer . | . . . . Garrison Access Hacks . | . . . . Unauthorized Hacks . | . . . . Terminals . | . . . . Fabricators . | . . . . Repair Stations . | . . . . Recycling Units . | . . . . Scanalyzers . | . . . . Garrison Access . | . . . . Data Cores Recovered . | . . . . Used . | . . . . Hacking Detections . | . . . . Full Trace Events . | . . . . Feedback Events . | . . . . Feedback Blocked . | . . . . Robot Schematics Acquired . | . . . . Robots Built . | . . . . Authchips . | . . . . Time . | . . . . Total Robot Build Rating . | . . . . Part Schematics Acquired . | . . . . Parts Built . | . . . . Authchips . | . . . . Time . | . . . . Total Part Build Rating . | . . . . Parts Repaired . | . . . . Time . | . . . . Parts Recycled . | . . . . Recycled Matter . | . . . . Retrieved Matter . | . . . . Retrieved Components . | . . . . Parts Scanalyzed . | . . . . Part Schematics Acquired . | . . . . Parts Damaged . | . . . . Bothacking | -11 -10 -10 -10 ------------ Run | Jun Mat Min Exi Used RIF Installer . | . . . . Robots Hacked . | . . . . Non-combat . | . . . . Combat . | . . . . Robot Hacks Applied . | . . . . Relay Couplers Released . | . . . . Fabnet Peak Effective % . | . . . . Robots Rewired . | . . . . Allies Hacked . | . . . . Hacks Repelled . | . . . . Allies | -11 -10 -10 -10 -------- Run | Jun Mat Min Exi Total Allies . | . . . . Largest Group . | . . . . Highest-Rated Group . | . . . . Highest-Rated Ally . | . . . . Total Orders . | . . . . Ally Attacks . | . . . . Total Damage . | . . . . Kills . | . . . . Allies Corrupted . | . . . . Allies Melted . | . . . . Intel | -11 -10 -10 -10 ------- Run | Jun Mat Min Exi Robot Analysis Total . | . . . . Derelict Logs Recovered 1 | . . 1 . Drone Launches . | . . . . Drone Recoveries . | . . . . Exploration | -11 -10 -10 -10 ------------- Run | Jun Mat Min Exi Turns Passed 2246 | 112 262 752 1120 Spaces Moved 1234 | 76 121 419 618 Core 27 | 27 . . . Treads 1207 | 49 121 419 618 Legs . | . . . . Wheels . | . . . . Hover . | . . . . Flight . | . . . . Fastest Speed 50 | 50 160 160 160 Average Speed 158 | 120 160 160 161 Slowest Speed 240 | 160 160 160 240 Overloaded Moves . | . . . . Propulsion Burnouts . | . . . . Robots Hopped . | . . . . Cave-ins Triggered . | . . . . Exploration Rate (%) 45 | 5 34 56 88 Regions Visited 3 Branch Regions 2 Pre-discovered Areas . | . . . . Known Exits Taken . | . . . . Unknown Exits Taken 3 | 1 1 1 . Scrap Searched . | . . . . Spaces Dug . | . . . . Terrain Destroyed 17 | . . . 17 Melee . | . . . . Projectile . | . . . . AOE 17 | . . . 17 Terrain Rammed . | . . . . Walls Destroyed . | . . . . Machines Disabled . | . . . . Actions | -11 -10 -10 -10 --------- Run | Jun Mat Min Exi Total 1434 | 93 158 461 722 Wait 95 | . 8 11 76 Move 1231 | 75 120 418 618 Hop . | . . . . Pick Up 21 | 9 6 3 3 Fast Attach 3 | . 3 . . Attach 6 | 6 . . . Detach . | . . . . Swap 10 | . 1 3 6 Drop 11 | . 3 3 5 Fire 56 | 3 17 22 14 Melee . | . . . . Ram . | . . . . Kick . | . . . . Crush 1 | . . 1 . Escape Stasis . | . . . . Rewire . | . . . . Trap . | . . . . Miscellaneous . | . . . . Route ------- -11/Junkyard -10/Materials -10/Mines (discovered 3 exits: [*Mat x2] / *Exi) -10/Exiles (discovered 2 exits: [*Min x2]) History --------- Turn | Location | Event 3 | -11/Junkyard | Discovered new exit (range 15) 113 | -11/Junkyard | Entered Materials 281 | -10/Materials | Met 8R-AWN 334 | -10/Materials | Build established: Mutant 359 | -10/Materials | Discovered new exit (range 9) 375 | -10/Materials | Entered Mines 376 | -10/Mines | Followed 8R-AWN into the Mines 474 | -10/Mines | A weapon hastily lodged in a ceiling crevice suddenly fell to the ground 579 | -10/Mines | Discovered new exit (range 4) 600 | -10/Mines | Core integrity fell below 50% 685 | -10/Mines | Learned Materials stockpile data 786 | -10/Mines | Discovered new exit (range 5) 855 | -10/Mines | Discovered new exit (range 6) 959 | -10/Mines | Met a Derelict shopkeep closing up shop 1127 | -10/Mines | Entered Exiles 1153 | -10/Exiles | Discovered new exit (range 15) 1171 | -10/Exiles | Welcomed by 8R-AWN 1190 | -10/Exiles | Met EX-HEX 1242 | -10/Exiles | Met EX-BIN 1335 | -10/Exiles | Aligned with FarCom system 1337 | -10/Exiles | Given EX-Vault access code 1394 | -10/Exiles | Opened EX-Vault 1411 | -10/Exiles | Found Latent Energy Streamer 1447 | -10/Exiles | Warned to stay clear of 0b10 Research branches 1492 | -10/Exiles | Met EX-DEC 1546 | -10/Exiles | Discovered new exit (range 14) 1957 | -10/Exiles | Visited The Gauntlet 2141 | -10/Exiles | Attacked by the Exiles 2170 | -10/Exiles | Core integrity fell below 20% 2247 | -10/Exiles | Destroyed by 8R-AWN with 8R-AWN's Boregun Last Messages --------------- 02238_ Penetrated by HV Slug. 02238_ HV Slug penetrates Wall. 02238_ Penetrated by HV Slug. 02238_ HV Slug penetrates Wall. 02240_ Penetrated by HV Slug. 02240_ HV Slug penetrates Wall. 02240_ Penetrated by HV Slug. 02240_ HV Slug penetrates Earth. 02243_ HV Slug penetrates Machine. 02243_ Machine disabled. 02243_ HV Slug penetrates Wall. 02243_ Penetrated by HV Slug. 02243_ HV Slug penetrates Earth. 02245_ HV Slug penetrates Machine. 02245_ HV Slug penetrates Wall. 02245_ Penetrated by HV Slug. 02245_ HV Slug penetrates Earth. 02247_ Penetrated by HV Slug. 02247_ HV Slug penetrates Earth. 02247_ Penetrated by HV Slug. Map ----- +----------------------------------------------------+ | ?????????????????????????????????????????????????? | | ?????????????????????????????????????????????????? | | ?????????#####???????????????????????????????????? | | ????????## ##??????????????????????????????????? | | ????????# #??????????????????????????????????? | | ????????# < #??????????????????????????????????? | | ????????# ###????????????????????????????????? | | ????????# #????????????????????????????????? | | ????????# ##????????????????????????????????? | | ????????## #?????????????????????????????????? | | ?????????# ##????????????????????????????????? | | ?????????## #????????????#######?????????????? | | ??????????# #######??????#!!! "#?????????????? | | ??????????# #""##?????# "#?????????????? | | ??????????## #?????# "#?????????????? | | ???????????##" ##???## ""#????????????## | | ???????????#"" #####" ""#???????????? | | ???????????#### ##" ""#????????????" | | ??????????????## #"" #??????????????" | | ???????????????#"## #?????????????"" | | ???????????????####### ##????????????"" | | ?????????????????????### a "#???????????? | | ???????????????########" ###???????????" | | ???????????????# !!"""" % ##??????????# | | ???????????????#! g ###"" ######???### | | ???????????????#! !@ #?##" "#####X# | | ???????????????#! *!#;#?#" | | ???????????????# !"""" "#;#???#"# % % | | ???????????????######;### #???#### % | | ????????????????????#???# #??????#"" % | | ????????????????????????# #????????""" | | ????????????????????????# #????????# "" | | ????????????????????????# #?????????# " | | ????????????????????????# #??????????## | | ????????????????????????? ????????????? " " | | ????????????????????????? ?????????????#"" | | ?????????????????????????#?????????????#"" | | ??????????????????????????????????????##""" | | ??????????????????????????????????????#""" | | ??????????????????????????????????????#""" | | ??????????????????????????????????????#"" | | ??????????????????????????????????????#""" | | ??????????????????????????????????????#"" | | ??????????????????????????????????????##"" | | ???????????????????????????????????????#"""" | | ???????????????????????????????????????## | | ????????????????????????????????????????#" | | ????????????????????????????????????????#"""" | | ????????????????????????????????????????#"" | | ????????????????????????????????????????#" | +----------------------------------------------------+ Best States ------------- Heat Dissipation 35 Energy Generation 10 Energy Capacity 250 Matter Stores 300 Matter Capacity 300 Sight Range 16 Terrain Scan Density 10 Armor Coverage 225 Evasion (%) 50 Recoil Reduction 2 Item Schematics ----------------- None Robot Schematics ------------------ None Fabricated ------------ Nothing Alien Tech Used ----------------- None Achievements -------------- None Challenges ------------ None Game ------ Seed FortressSpikedMapper Manual? 0 Play Time 00:11:36 Cumulative 104.7 hours Start 2023.10.26 @ 13:50:00 End 2023.10.26 @ 14:00:30 Sessions 1 Manual Loads 0 Difficulty Rogue Special Mode None Game No. 116 Rogue 80 Adventurer 36 Explorer 0 Win Type - Total 7 Types 2/0/5/0/0/0/0/0/0 Lore% 52 Gallery% 72 Achievement% 61 Wizard Run 0 Options --------- ASCII 0 Keyboard 0 Movement Mouse Keybinds 0 Fullscreen 1 Font 18/SmallcapsGlow Map View 76x50 Tactical HUD 1 Map Filters NONE Filters NONE Steam 1 RUN: cf2a593e-c4af-4236-baa2-23aef38f09e4